[Event "Titled Tuesday Blitz July 26 Early 2022"]
[White "Skuhala, Jernej"]
[Black "Kravtsiv, Martyn"]
[WhiteFideId "14605651"]
[BlackFideId "14113147"]
[WhiteElo "2381"]
[BlackElo "2694"]
[Result "0-1"]
[Round "01"]
[TimeControl "180+1"]
[Date "2022.07.27"]
[WhiteClock "0:00:06"]
[BlackClock "0:00:04"]

1. e4 {[%clk 0:02:59]}  e5 {[%clk 0:02:59]} 2. Nf3 {[%clk 0:02:56]}  Nc6 {[%clk 0:02:58]} 3. Bb5 {[%clk 0:02:53]}  a6 {[%clk 0:02:58]} 4. Ba4 {[%clk 0:02:51]}  Nf6 {[%clk 0:02:58]} 5. O-O {[%clk 0:02:51]}  Be7 {[%clk 0:02:57]} 6. Re1 {[%clk 0:02:51]}  b5 {[%clk 0:02:57]} 7. Bb3 {[%clk 0:02:51]}  O-O {[%clk 0:02:57]} 8. d4 {[%clk 0:02:47]}  Nxd4 {[%clk 0:02:47]} 9. Nxd4 {[%clk 0:02:46]}  exd4 {[%clk 0:02:48]} 10. e5 {[%clk 0:02:46]}  Ne8 {[%clk 0:02:46]} 11. Qxd4 {[%clk 0:02:46]}  c5 {[%clk 0:02:43]} 12. Qe4 {[%clk 0:02:47]}  Nc7 {[%clk 0:02:40]} 13. c3 {[%clk 0:02:46]}  Rb8 {[%clk 0:02:31]} 14. Bc2 {[%clk 0:02:39]}  g6 {[%clk 0:02:29]} 15. Bh6 {[%clk 0:02:31]}  Re8 {[%clk 0:02:29]} 16. Nd2 {[%clk 0:02:26]}  d5 {[%clk 0:02:22]} 17. exd6 {[%clk 0:02:18]}  Bxd6 {[%clk 0:02:21]} 18. Qf3 {[%clk 0:02:19]}  Bb7 {[%clk 0:02:19]} 19. Qh3 {[%clk 0:02:06]}  Ne6 {[%clk 0:02:14]} 20. Rad1 {[%clk 0:02:00]}  Nf4 {[%clk 0:02:03]} 21. Bxf4 {[%clk 0:01:53]}  Rxe1+ {[%clk 0:02:01]} 22. Rxe1 {[%clk 0:01:49]}  Bxf4 {[%clk 0:02:02]} 23. Nf1 {[%clk 0:01:41]}  Qf6 {[%clk 0:01:49]} 24. Be4 {[%clk 0:01:40]}  Re8 {[%clk 0:01:41]} 25. Qf3 {[%clk 0:01:21]}  Bg5 {[%clk 0:01:20]} 26. Qg4 {[%clk 0:00:55]}  h5 {[%clk 0:01:10]} 27. Qd7 {[%clk 0:00:37]}  Rxe4 {[%clk 0:01:08]} 28. Rxe4 {[%clk 0:00:36]}  Bxe4 {[%clk 0:01:07]} 29. Qe8+ {[%clk 0:00:36]}  Kg7 {[%clk 0:01:07]} 30. Qxe4 {[%clk 0:00:37]}  Qd6 {[%clk 0:00:45]} 31. Qc2 {[%clk 0:00:29]}  c4 {[%clk 0:00:43]} 32. b3 {[%clk 0:00:21]}  Qd3 {[%clk 0:00:40]} 33. Qb2 {[%clk 0:00:18]}  Bf6 {[%clk 0:00:39]} 34. bxc4 {[%clk 0:00:18]}  Qxc4 {[%clk 0:00:36]} 35. Qa3 {[%clk 0:00:17]}  Qc6 {[%clk 0:00:32]} 36. Nd2 {[%clk 0:00:13]}  Bxc3 {[%clk 0:00:31]} 37. Nb3 {[%clk 0:00:12]}  Bf6 {[%clk 0:00:28]} 38. g3 {[%clk 0:00:13]}  Be5 {[%clk 0:00:21]} 39. Qb4 {[%clk 0:00:13]}  Qd6 {[%clk 0:00:19]} 40. Qe4 {[%clk 0:00:11]}  Bf6 {[%clk 0:00:19]} 41. Qe3 {[%clk 0:00:10]}  Qa3 {[%clk 0:00:19]} 42. Qe2 {[%clk 0:00:09]}  a5 {[%clk 0:00:17]} 43. Qxb5 {[%clk 0:00:08]}  a4 {[%clk 0:00:16]} 44. Nc5 {[%clk 0:00:09]}  Qc1+ {[%clk 0:00:15]} 45. Kg2 {[%clk 0:00:08]}  a3 {[%clk 0:00:16]} 46. Ne4 {[%clk 0:00:07]}  Qb2 {[%clk 0:00:14]} 47. Qc6 {[%clk 0:00:08]}  Bd4 {[%clk 0:00:13]} 48. Qc4 {[%clk 0:00:08]}  Bb6 {[%clk 0:00:11]} 49. Qc3+ {[%clk 0:00:06]}  Bd4 {[%clk 0:00:09]} 50. Qc4 {[%clk 0:00:06]}  h4 {[%clk 0:00:09]} 51. gxh4 {[%clk 0:00:06]}  Bb6 {[%clk 0:00:08]} 52. Qc3+ {[%clk 0:00:06]}  Bd4 {[%clk 0:00:07]} 53. Qxb2 {[%clk 0:00:05]}  axb2 {[%clk 0:00:06]} 54. Nd2 {[%clk 0:00:06]}  Kf6 {[%clk 0:00:06]} 55. Kf3 {[%clk 0:00:06]}  Ke5 {[%clk 0:00:04]} 56. Ke2 {[%clk 0:00:07]}  Kd5 {[%clk 0:00:03]} 57. Kd3 {[%clk 0:00:07]}  Bxf2 {[%clk 0:00:03]} 58. h5 {[%clk 0:00:07]}  gxh5 {[%clk 0:00:02]} 59. Kc2 {[%clk 0:00:08]}  Bd4 {[%clk 0:00:03]} 60. a4 {[%clk 0:00:05]}  f5 {[%clk 0:00:03]} 61. a5 {[%clk 0:00:05]}  f4 {[%clk 0:00:04]} 62. a6 {[%clk 0:00:06]}  Kc6 {[%clk 0:00:04]} 63. Nb3 {[%clk 0:00:05]}  Bf6 {[%clk 0:00:04]} 64. Na5+ {[%clk 0:00:05]}  Kb6 {[%clk 0:00:04]} 65. Nc4+ {[%clk 0:00:05]}  Kxa6 {[%clk 0:00:05]} 66. Nd6 {[%clk 0:00:06]}  f3 {[%clk 0:00:04]} 67. Ne4 {[%clk 0:00:06]}  Bd4 {[%clk 0:00:04]} 68. Nd2 {[%clk 0:00:05]}  f2 {[%clk 0:00:04]} 69. h3 {[%clk 0:00:06]}  Kb5 {[%clk 0:00:04]} 70. Kd3 {[%clk 0:00:06]}  Kc5 {[%clk 0:00:05]} 71. Ne4+ {[%clk 0:00:06]}  Kd5 {[%clk 0:00:05]} 72. Nf6+ {[%clk 0:00:06]}  Bxf6 {[%clk 0:00:04]} 0-1


[Site "https://www.chess.com"]

[Event "Titled Tuesday Blitz July 26 Early 2022"]
[White "Timofeev, Artyom"]
[Black "Peatman, Carter"]
[WhiteFideId "4140419"]
[BlackFideId "2096480"]
[WhiteElo "2578"]
[BlackElo "2468"]
[Result "1-0"]
[Round "01"]
[TimeControl "180+1"]
[Date "2022.07.26"]
[WhiteClock "0:00:22"]
[BlackClock "0:00:02"]

1. e4 {[%clk 0:03:00]}  e5 {[%clk 0:02:58]} 2. Nf3 {[%clk 0:02:59]}  Nf6 {[%clk 0:02:58]} 3. Nxe5 {[%clk 0:02:58]}  d6 {[%clk 0:02:52]} 4. Nf3 {[%clk 0:02:58]}  Nxe4 {[%clk 0:02:48]} 5. Qe2 {[%clk 0:02:58]}  Qe7 {[%clk 0:02:37]} 6. d3 {[%clk 0:02:57]}  Nf6 {[%clk 0:02:31]} 7. Bg5 {[%clk 0:02:56]}  Nbd7 {[%clk 0:02:30]} 8. Nc3 {[%clk 0:02:54]}  c6 {[%clk 0:02:27]} 9. O-O-O {[%clk 0:02:52]}  Qxe2 {[%clk 0:02:26]} 10. Bxe2 {[%clk 0:02:52]}  Be7 {[%clk 0:02:22]} 11. Rhe1 {[%clk 0:02:48]}  O-O {[%clk 0:02:22]} 12. Nd4 {[%clk 0:02:46]}  Ne5 {[%clk 0:02:16]} 13. h3 {[%clk 0:02:43]}  h6 {[%clk 0:02:16]} 14. Be3 {[%clk 0:02:40]}  Re8 {[%clk 0:02:14]} 15. f4 {[%clk 0:02:39]}  Ng6 {[%clk 0:02:09]} 16. g4 {[%clk 0:02:37]}  a5 {[%clk 0:01:51]} 17. f5 {[%clk 0:02:31]}  Ne5 {[%clk 0:01:49]} 18. Bf4 {[%clk 0:02:30]}  Nfd7 {[%clk 0:01:48]} 19. Nf3 {[%clk 0:02:25]}  a4 {[%clk 0:01:17]} 20. d4 {[%clk 0:02:23]}  Nxf3 {[%clk 0:01:08]} 21. Bxf3 {[%clk 0:02:23]}  Kf8 {[%clk 0:01:07]} 22. Ne4 {[%clk 0:02:09]}  d5 {[%clk 0:01:05]} 23. Nd6 {[%clk 0:02:09]}  Rd8 {[%clk 0:01:04]} 24. c4 {[%clk 0:02:04]}  Nf6 {[%clk 0:01:01]} 25. c5 {[%clk 0:02:02]}  b6 {[%clk 0:00:52]} 26. Nxc8 {[%clk 0:01:57]}  Raxc8 {[%clk 0:00:45]} 27. cxb6 {[%clk 0:01:57]}  Bd6 {[%clk 0:00:45]} 28. Bd2 {[%clk 0:01:36]}  c5 {[%clk 0:00:43]} 29. Kb1 {[%clk 0:01:33]}  cxd4 {[%clk 0:00:34]} 30. Ba5 {[%clk 0:01:33]}  Ra8 {[%clk 0:00:31]} 31. Bd2 {[%clk 0:01:27]}  Bc5 {[%clk 0:00:27]} 32. a3 {[%clk 0:01:20]}  Rab8 {[%clk 0:00:27]} 33. Rc1 {[%clk 0:01:17]}  Bxb6 {[%clk 0:00:26]} 34. Bb4+ {[%clk 0:01:17]}  Kg8 {[%clk 0:00:26]} 35. Rc6 {[%clk 0:01:16]}  Ne4 {[%clk 0:00:20]} 36. Bxe4 {[%clk 0:01:00]}  dxe4 {[%clk 0:00:21]} 37. Rxe4 {[%clk 0:01:00]}  d3 {[%clk 0:00:21]} 38. Kc1 {[%clk 0:01:00]}  Rbc8 {[%clk 0:00:13]} 39. Rec4 {[%clk 0:00:56]}  Rxc6 {[%clk 0:00:13]} 40. Rxc6 {[%clk 0:00:56]}  Be3+ {[%clk 0:00:07]} 41. Kd1 {[%clk 0:00:56]}  Bd4 {[%clk 0:00:08]} 42. Bc3 {[%clk 0:00:42]}  Bxc3 {[%clk 0:00:08]} 43. bxc3 {[%clk 0:00:43]}  Rb8 {[%clk 0:00:08]} 44. Kd2 {[%clk 0:00:42]}  Rb3 {[%clk 0:00:08]} 45. Kxd3 {[%clk 0:00:42]}  Rxa3 {[%clk 0:00:09]} 46. Ra6 {[%clk 0:00:42]}  Kh7 {[%clk 0:00:07]} 47. Kc4 {[%clk 0:00:37]}  g6 {[%clk 0:00:04]} 48. h4 {[%clk 0:00:32]}  h5 {[%clk 0:00:03]} 49. fxg6+ {[%clk 0:00:32]}  fxg6 {[%clk 0:00:03]} 50. g5 {[%clk 0:00:32]}  Kg7 {[%clk 0:00:04]} 51. Ra7+ {[%clk 0:00:32]}  Kg8 {[%clk 0:00:04]} 52. Kd4 {[%clk 0:00:32]}  Kf8 {[%clk 0:00:03]} 53. c4 {[%clk 0:00:32]}  Rh3 {[%clk 0:00:01]} 54. Kd5 {[%clk 0:00:28]}  Rxh4 {[%clk 0:00:02]} 55. Rxa4 {[%clk 0:00:28]}  Rg4 {[%clk 0:00:02]} 56. Kd6 {[%clk 0:00:26]}  Rxg5 {[%clk 0:00:03]} 57. c5 {[%clk 0:00:26]}  Rg3 {[%clk 0:00:02]} 58. c6 {[%clk 0:00:24]}  Rd3+ {[%clk 0:00:02]} 59. Ke6 {[%clk 0:00:23]}  Rc3 {[%clk 0:00:02]} 60. Kd7 {[%clk 0:00:23]}  g5 {[%clk 0:00:02]} 61. Ra5 {[%clk 0:00:22]} 1-0


[Site "https://www.chess.com"]

[Event "Titled Tuesday Blitz July 26 Early 2022"]
[White "Toncheva, Nadya"]
[Black "Nakamura, Hikaru"]
[WhiteFideId "2924056"]
[BlackFideId "2016192"]
[WhiteElo "1888"]
[BlackElo "2850"]
[Result "0-1"]
[Round "01"]
[TimeControl "180+1"]
[Date "2022.07.26"]
[WhiteClock "0:00:10"]
[BlackClock "0:00:54"]

1. d4 {[%clk 0:02:59]}  g6 {[%clk 0:02:57]} 2. c4 {[%clk 0:03:00]}  Bg7 {[%clk 0:02:57]} 3. Nc3 {[%clk 0:03:00]}  c5 {[%clk 0:02:56]} 4. d5 {[%clk 0:03:00]}  Bxc3+ {[%clk 0:02:57]} 5. bxc3 {[%clk 0:03:01]}  Qa5 {[%clk 0:02:55]} 6. Qc2 {[%clk 0:02:57]}  f5 {[%clk 0:02:55]} 7. e4 {[%clk 0:02:57]}  fxe4 {[%clk 0:02:54]} 8. Ne2 {[%clk 0:02:57]}  d6 {[%clk 0:02:53]} 9. Ng3 {[%clk 0:02:51]}  Bf5 {[%clk 0:02:48]} 10. Be2 {[%clk 0:02:38]}  Nf6 {[%clk 0:02:45]} 11. Bg5 {[%clk 0:02:32]}  Nbd7 {[%clk 0:02:45]} 12. O-O {[%clk 0:02:25]}  O-O-O {[%clk 0:02:38]} 13. Rab1 {[%clk 0:02:06]}  h6 {[%clk 0:02:25]} 14. Be3 {[%clk 0:02:02]}  Ne5 {[%clk 0:02:22]} 15. Rb5 {[%clk 0:01:52]}  Qc7 {[%clk 0:02:14]} 16. Rfb1 {[%clk 0:01:30]}  Rd7 {[%clk 0:02:14]} 17. a4 {[%clk 0:01:24]}  Kb8 {[%clk 0:02:12]} 18. a5 {[%clk 0:01:21]}  Ka8 {[%clk 0:02:10]} 19. Qa4 {[%clk 0:01:16]}  Rb8 {[%clk 0:02:09]} 20. a6 {[%clk 0:01:14]}  b6 {[%clk 0:02:08]} 21. R5b2 {[%clk 0:01:13]}  Rh8 {[%clk 0:02:01]} 22. Bd1 {[%clk 0:01:06]}  Rdd8 {[%clk 0:01:59]} 23. Qa2 {[%clk 0:01:02]}  h5 {[%clk 0:01:55]} 24. h4 {[%clk 0:00:51]}  Rhf8 {[%clk 0:01:47]} 25. Bh6 {[%clk 0:00:47]}  Rg8 {[%clk 0:01:47]} 26. Bg5 {[%clk 0:00:46]}  Rdf8 {[%clk 0:01:43]} 27. Ba4 {[%clk 0:00:43]}  Bd7 {[%clk 0:01:43]} 28. Bxd7 {[%clk 0:00:41]}  Nexd7 {[%clk 0:01:39]} 29. Re2 {[%clk 0:00:41]}  Ne5 {[%clk 0:01:25]} 30. Nxe4 {[%clk 0:00:39]}  Nh7 {[%clk 0:01:22]} 31. Rbe1 {[%clk 0:00:32]}  Nd3 {[%clk 0:01:18]} 32. Rd1 {[%clk 0:00:30]}  Ne5 {[%clk 0:01:18]} 33. Rde1 {[%clk 0:00:29]}  Rf7 {[%clk 0:01:19]} 34. Re3 {[%clk 0:00:21]}  Rgf8 {[%clk 0:01:18]} 35. f3 {[%clk 0:00:18]}  Qd7 {[%clk 0:01:13]} 36. Qe2 {[%clk 0:00:17]}  Qa4 {[%clk 0:01:09]} 37. Bh6 {[%clk 0:00:17]}  Rb8 {[%clk 0:00:56]} 38. Nd2 {[%clk 0:00:16]}  Qxa6 {[%clk 0:00:54]} 39. f4 {[%clk 0:00:13]}  Ng4 {[%clk 0:00:55]} 40. Rxe7 {[%clk 0:00:13]}  Nxh6 {[%clk 0:00:55]} 41. Rxf7 {[%clk 0:00:12]}  Nxf7 {[%clk 0:00:56]} 42. Qe7 {[%clk 0:00:12]}  Qb7 {[%clk 0:00:56]} 43. Qxb7+ {[%clk 0:00:10]}  Rxb7 {[%clk 0:00:54]} 44. Re8+ {[%clk 0:00:11]}  Rb8 {[%clk 0:00:54]} 45. Re7 {[%clk 0:00:11]}  Rf8 {[%clk 0:00:54]} 46. Ne4 {[%clk 0:00:10]}  a5 {[%clk 0:00:54]} 0-1


[Site "https://www.chess.com"]

[Event "Titled Tuesday Blitz July 26 Early 2022"]
[White "Ulasevich, Sergei"]
[Black "Rychagov, Andrey"]
[WhiteFideId "13505629"]
[BlackFideId "4119932"]
[WhiteElo "2151"]
[BlackElo "2481"]
[Result "0-1"]
[Round "01"]
[TimeControl "180+1"]
[Date "2022.07.27"]
[WhiteClock "0:00:03"]
[BlackClock "0:00:19"]

1. d4 {[%clk 0:02:59]}  f5 {[%clk 0:02:59]} 2. h4 {[%clk 0:02:54]}  e6 {[%clk 0:02:55]} 3. Nf3 {[%clk 0:02:54]}  Nf6 {[%clk 0:02:55]} 4. g3 {[%clk 0:02:53]}  Be7 {[%clk 0:02:52]} 5. Bg2 {[%clk 0:02:52]}  O-O {[%clk 0:02:52]} 6. O-O {[%clk 0:02:51]}  d6 {[%clk 0:02:53]} 7. c3 {[%clk 0:02:49]}  Nc6 {[%clk 0:02:51]} 8. a4 {[%clk 0:02:45]}  a5 {[%clk 0:02:47]} 9. Qb3 {[%clk 0:02:45]}  Kh8 {[%clk 0:02:44]} 10. Rd1 {[%clk 0:02:45]}  Qe8 {[%clk 0:02:43]} 11. Bf4 {[%clk 0:02:35]}  Bd8 {[%clk 0:02:33]} 12. Na3 {[%clk 0:02:00]}  e5 {[%clk 0:02:25]} 13. Bg5 {[%clk 0:01:51]}  e4 {[%clk 0:02:21]} 14. Nh2 {[%clk 0:01:46]}  h6 {[%clk 0:02:20]} 15. Bxf6 {[%clk 0:01:46]}  Bxf6 {[%clk 0:02:19]} 16. e3 {[%clk 0:01:41]}  Rb8 {[%clk 0:02:09]} 17. Nb5 {[%clk 0:01:41]}  Qe7 {[%clk 0:02:08]} 18. Qc2 {[%clk 0:01:38]}  d5 {[%clk 0:02:02]} 19. Nf1 {[%clk 0:01:34]}  Be6 {[%clk 0:01:58]} 20. Qd2 {[%clk 0:01:27]}  Rbe8 {[%clk 0:01:54]} 21. b4 {[%clk 0:01:27]}  g5 {[%clk 0:01:43]} 22. hxg5 {[%clk 0:01:26]}  hxg5 {[%clk 0:01:43]} 23. Rdb1 {[%clk 0:01:23]}  Kg7 {[%clk 0:01:42]} 24. f4 {[%clk 0:01:12]}  Rh8 {[%clk 0:01:28]} 25. Kf2 {[%clk 0:01:09]}  Kf7 {[%clk 0:01:27]} 26. Ra2 {[%clk 0:00:50]}  Bc8 {[%clk 0:01:25]} 27. Rc2 {[%clk 0:00:50]}  b6 {[%clk 0:01:15]} 28. Na3 {[%clk 0:00:48]}  Be6 {[%clk 0:01:03]} 29. Qc1 {[%clk 0:00:47]}  Qd7 {[%clk 0:00:55]} 30. b5 {[%clk 0:00:47]}  Ne7 {[%clk 0:00:56]} 31. c4 {[%clk 0:00:47]}  gxf4 {[%clk 0:00:53]} 32. exf4 {[%clk 0:00:47]}  Bxd4+ {[%clk 0:00:53]} 33. Ne3 {[%clk 0:00:43]}  Reg8 {[%clk 0:00:48]} 34. Qd2 {[%clk 0:00:32]}  Bc5 {[%clk 0:00:44]} 35. cxd5 {[%clk 0:00:27]}  Nxd5 {[%clk 0:00:44]} 36. Rxc5 {[%clk 0:00:28]}  bxc5 {[%clk 0:00:43]} 37. Rd1 {[%clk 0:00:28]}  Rd8 {[%clk 0:00:37]} 38. Nac4 {[%clk 0:00:28]}  Qe7 {[%clk 0:00:35]} 39. Ne5+ {[%clk 0:00:28]}  Kf6 {[%clk 0:00:34]} 40. Nc6 {[%clk 0:00:28]}  Nxe3 {[%clk 0:00:33]} 41. Qxe3 {[%clk 0:00:24]}  Rxd1 {[%clk 0:00:22]} 42. Qc3+ {[%clk 0:00:24]}  Kf7 {[%clk 0:00:19]} 43. Nxe7 {[%clk 0:00:21]}  Rhd8 {[%clk 0:00:19]} 44. Nc6 {[%clk 0:00:17]}  R8d2+ {[%clk 0:00:19]} 45. Ke3 {[%clk 0:00:16]}  Rd3+ {[%clk 0:00:20]} 46. Qxd3 {[%clk 0:00:16]}  Rxd3+ {[%clk 0:00:20]} 47. Ke2 {[%clk 0:00:16]}  Rxg3 {[%clk 0:00:20]} 48. Kf2 {[%clk 0:00:16]}  Ra3 {[%clk 0:00:19]} 49. Ne5+ {[%clk 0:00:15]}  Kf6 {[%clk 0:00:19]} 50. Bf1 {[%clk 0:00:12]}  Rxa4 {[%clk 0:00:19]} 51. Be2 {[%clk 0:00:12]}  c4 {[%clk 0:00:19]} 52. Ke3 {[%clk 0:00:09]}  c3 {[%clk 0:00:20]} 53. Bd1 {[%clk 0:00:08]}  Rb4 {[%clk 0:00:20]} 54. Nc6 {[%clk 0:00:03]}  Rb2 {[%clk 0:00:20]} 55. Ba4 {[%clk 0:00:03]}  c2 {[%clk 0:00:20]} 56. Kd2 {[%clk 0:00:03]}  Bb3 {[%clk 0:00:18]} 57. Bxb3 {[%clk 0:00:03]}  Rxb3 {[%clk 0:00:18]} 58. Kxc2 {[%clk 0:00:03]}  Rxb5 {[%clk 0:00:18]} 59. Kc3 {[%clk 0:00:03]}  Rc5+ {[%clk 0:00:19]} 60. Kd4 {[%clk 0:00:04]}  Rxc6 {[%clk 0:00:19]} 61. Ke3 {[%clk 0:00:03]}  Rd6 {[%clk 0:00:19]} 0-1


[Site "https://www.chess.com"]

[Event "Titled Tuesday Blitz July 26 Early 2022"]
[White "Urbina Perez, Juan Antonio"]
[Black "Ohanyan, Emin"]
[WhiteFideId "2217368"]
[BlackFideId "13312022"]
[WhiteElo "2192"]
[BlackElo "1927"]
[Result "0-1"]
[Round "01"]
[TimeControl "180+1"]
[Date "2022.07.26"]
[WhiteClock "0:00:12"]
[BlackClock "0:00:38"]

1. e4 {[%clk 0:02:59]}  e5 {[%clk 0:02:53]} 2. Nf3 {[%clk 0:02:59]}  Nc6 {[%clk 0:02:51]} 3. Bb5 {[%clk 0:03:00]}  f5 {[%clk 0:02:51]} 4. d3 {[%clk 0:02:59]}  fxe4 {[%clk 0:02:51]} 5. dxe4 {[%clk 0:03:00]}  Nf6 {[%clk 0:02:52]} 6. O-O {[%clk 0:03:00]}  Bc5 {[%clk 0:02:51]} 7. Bxc6 {[%clk 0:03:00]}  bxc6 {[%clk 0:02:51]} 8. Nxe5 {[%clk 0:03:00]}  O-O {[%clk 0:02:50]} 9. Nd3 {[%clk 0:03:00]}  Nxe4 {[%clk 0:02:45]} 10. Nxc5 {[%clk 0:02:58]}  Nxc5 {[%clk 0:02:46]} 11. c4 {[%clk 0:02:57]}  d6 {[%clk 0:02:40]} 12. Nc3 {[%clk 0:02:53]}  Be6 {[%clk 0:02:31]} 13. b3 {[%clk 0:02:50]}  Qf6 {[%clk 0:02:32]} 14. Bb2 {[%clk 0:02:49]}  Qg6 {[%clk 0:02:32]} 15. Kh1 {[%clk 0:02:33]}  Nd3 {[%clk 0:02:26]} 16. Qd2 {[%clk 0:02:30]}  Bf5 {[%clk 0:02:08]} 17. f3 {[%clk 0:02:07]}  Rae8 {[%clk 0:01:59]} 18. Ne2 {[%clk 0:01:46]}  Qh6 {[%clk 0:01:30]} 19. f4 {[%clk 0:01:27]}  Be4 {[%clk 0:01:23]} 20. Ng3 {[%clk 0:01:23]}  Rxf4 {[%clk 0:01:13]} 21. Rxf4 {[%clk 0:01:14]}  Nxf4 {[%clk 0:01:12]} 22. Nxe4 {[%clk 0:01:11]}  Rxe4 {[%clk 0:01:13]} 23. Rf1 {[%clk 0:01:01]}  Re2 {[%clk 0:01:13]} 24. Qd4 {[%clk 0:00:48]}  c5 {[%clk 0:00:59]} 25. Qc3 {[%clk 0:00:45]}  Qg6 {[%clk 0:00:50]} 26. Qf3 {[%clk 0:00:22]}  Qxg2+ {[%clk 0:00:41]} 27. Qxg2 {[%clk 0:00:21]}  Nxg2 {[%clk 0:00:42]} 28. Ba1 {[%clk 0:00:16]}  Rxa2 {[%clk 0:00:41]} 29. Rg1 {[%clk 0:00:16]}  g6 {[%clk 0:00:39]} 30. Rf1 {[%clk 0:00:14]}  Ne3 {[%clk 0:00:37]} 31. Re1 {[%clk 0:00:12]}  Nc2 {[%clk 0:00:38]} 0-1


[Site "https://www.chess.com"]

[Event "Titled Tuesday Blitz July 26 Early 2022"]
[White "Vachylia, Andrii"]
[Black "Katzir, Moshe"]
[WhiteFideId "14137224"]
[BlackFideId "2802260"]
[WhiteElo "2318"]
[BlackElo "2097"]
[Result "1-0"]
[Round "01"]
[TimeControl "180+1"]
[Date "2022.07.27"]
[WhiteClock "0:00:11"]
[BlackClock "0:00:09"]

1. e4 {[%clk 0:02:51]}  d5 {[%clk 0:02:59]} 2. exd5 {[%clk 0:02:51]}  Qxd5 {[%clk 0:02:59]} 3. Nc3 {[%clk 0:02:51]}  Qd8 {[%clk 0:03:00]} 4. d4 {[%clk 0:02:51]}  Nf6 {[%clk 0:03:00]} 5. Nf3 {[%clk 0:02:52]}  g6 {[%clk 0:03:00]} 6. Bc4 {[%clk 0:02:50]}  Bg7 {[%clk 0:03:00]} 7. Ne5 {[%clk 0:02:50]}  e6 {[%clk 0:02:59]} 8. O-O {[%clk 0:02:50]}  O-O {[%clk 0:02:59]} 9. Bg5 {[%clk 0:02:49]}  a6 {[%clk 0:02:59]} 10. Qf3 {[%clk 0:02:45]}  h6 {[%clk 0:02:48]} 11. Be3 {[%clk 0:02:38]}  Nbd7 {[%clk 0:02:44]} 12. Rad1 {[%clk 0:02:38]}  Rb8 {[%clk 0:02:42]} 13. Bb3 {[%clk 0:02:36]}  c6 {[%clk 0:02:41]} 14. Nc4 {[%clk 0:02:29]}  Nd5 {[%clk 0:02:36]} 15. Nd6 {[%clk 0:02:24]}  Qe7 {[%clk 0:02:30]} 16. Nxc8 {[%clk 0:02:19]}  Rfxc8 {[%clk 0:02:28]} 17. Ne4 {[%clk 0:02:15]}  N7f6 {[%clk 0:02:18]} 18. c4 {[%clk 0:02:01]}  Nxe3 {[%clk 0:02:17]} 19. fxe3 {[%clk 0:02:02]}  Nxe4 {[%clk 0:02:17]} 20. Qxe4 {[%clk 0:02:03]}  f5 {[%clk 0:02:10]} 21. Qf3 {[%clk 0:01:58]}  Kh7 {[%clk 0:02:10]} 22. e4 {[%clk 0:01:52]}  Rf8 {[%clk 0:02:05]} 23. Rfe1 {[%clk 0:01:47]}  Qd7 {[%clk 0:01:50]} 24. e5 {[%clk 0:01:41]}  Rfd8 {[%clk 0:01:47]} 25. d5 {[%clk 0:01:33]}  cxd5 {[%clk 0:01:47]} 26. cxd5 {[%clk 0:01:33]}  exd5 {[%clk 0:01:45]} 27. e6 {[%clk 0:01:33]}  Qe7 {[%clk 0:01:43]} 28. Rxd5 {[%clk 0:01:33]}  Rxd5 {[%clk 0:01:42]} 29. Qxd5 {[%clk 0:01:34]}  Rd8 {[%clk 0:01:42]} 30. Qxd8 {[%clk 0:01:15]}  Qxd8 {[%clk 0:01:29]} 31. e7 {[%clk 0:01:15]}  Qe8 {[%clk 0:01:15]} 32. Bf7 {[%clk 0:01:14]}  Qxf7 {[%clk 0:01:07]} 33. e8=Q {[%clk 0:01:14]}  Qxa2 {[%clk 0:01:01]} 34. b4 {[%clk 0:01:00]}  Qd5 {[%clk 0:00:54]} 35. h3 {[%clk 0:00:58]}  Qd4+ {[%clk 0:00:54]} 36. Kh1 {[%clk 0:00:58]}  Qxb4 {[%clk 0:00:53]} 37. Re6 {[%clk 0:00:58]}  Qb1+ {[%clk 0:00:47]} 38. Kh2 {[%clk 0:00:58]}  f4 {[%clk 0:00:45]} 39. Qf7 {[%clk 0:00:58]}  Qd3 {[%clk 0:00:20]} 40. Qxb7 {[%clk 0:00:44]}  Qg3+ {[%clk 0:00:19]} 41. Kh1 {[%clk 0:00:44]}  a5 {[%clk 0:00:15]} 42. Re7 {[%clk 0:00:43]}  Qc3 {[%clk 0:00:15]} 43. Qe4 {[%clk 0:00:40]}  a4 {[%clk 0:00:14]} 44. Qxa4 {[%clk 0:00:34]}  f3 {[%clk 0:00:10]} 45. Qd1 {[%clk 0:00:28]}  fxg2+ {[%clk 0:00:10]} 46. Kxg2 {[%clk 0:00:29]}  Qc6+ {[%clk 0:00:09]} 47. Qf3 {[%clk 0:00:28]}  Qc2+ {[%clk 0:00:09]} 48. Re2 {[%clk 0:00:28]}  Qc4 {[%clk 0:00:08]} 49. Rd2 {[%clk 0:00:20]}  Qc5 {[%clk 0:00:07]} 50. h4 {[%clk 0:00:18]}  h5 {[%clk 0:00:06]} 51. Qe4 {[%clk 0:00:17]}  Qb6 {[%clk 0:00:02]} 52. Rd5 {[%clk 0:00:17]}  Qf6 {[%clk 0:00:02]} 53. Rxh5+ {[%clk 0:00:17]}  Kg8 {[%clk 0:00:02]} 54. Rg5 {[%clk 0:00:11]}  Kh7 {[%clk 0:00:02]} 55. Kh3 {[%clk 0:00:10]}  Bh6 {[%clk 0:00:02]} 56. Rg3 {[%clk 0:00:10]}  Qf5+ {[%clk 0:00:02]} 57. Qxf5 {[%clk 0:00:09]}  gxf5 {[%clk 0:00:03]} 58. Kg2 {[%clk 0:00:09]}  f4 {[%clk 0:00:04]} 59. Rg4 {[%clk 0:00:10]}  Kh8 {[%clk 0:00:03]} 60. Kf3 {[%clk 0:00:10]}  Kh7 {[%clk 0:00:04]} 61. Rg2 {[%clk 0:00:10]}  Kh8 {[%clk 0:00:05]} 62. Rg6 {[%clk 0:00:11]}  Kh7 {[%clk 0:00:05]} 63. Re6 {[%clk 0:00:11]}  Kg7 {[%clk 0:00:06]} 64. Kg4 {[%clk 0:00:11]}  Kh7 {[%clk 0:00:06]} 65. Rf6 {[%clk 0:00:10]}  Kg7 {[%clk 0:00:06]} 66. Rf5 {[%clk 0:00:09]}  Kg6 {[%clk 0:00:06]} 67. Rb5 {[%clk 0:00:09]}  Kg7 {[%clk 0:00:07]} 68. Kh5 {[%clk 0:00:09]}  f3 {[%clk 0:00:07]} 69. Rf5 {[%clk 0:00:10]}  f2 {[%clk 0:00:06]} 70. Rxf2 {[%clk 0:00:10]}  Be3 {[%clk 0:00:07]} 71. Rf3 {[%clk 0:00:10]}  Bh6 {[%clk 0:00:07]} 72. Rb3 {[%clk 0:00:10]}  Kh7 {[%clk 0:00:08]} 73. Rb7+ {[%clk 0:00:11]}  Bg7 {[%clk 0:00:08]} 74. Kg5 {[%clk 0:00:11]}  Kg8 {[%clk 0:00:09]} 75. Kg6 {[%clk 0:00:12]}  Be5 {[%clk 0:00:08]} 76. Re7 {[%clk 0:00:11]}  Bb8 {[%clk 0:00:09]} 77. Re8# {[%clk 0:00:11]} 1-0


[Site "https://www.chess.com"]